bitfinex/quotes_ETHUSD_20260126
["timestamp","ask_amount","ask_price","bid_price","bid_amount"]
[1769409401500,0.727,2881.9,2880.5,7.21608077]
[1769409402505,0.727,2881.9,2880.4,1.93673679]
[1769409402506,0.002,2882.3,2880.7,7.21608077]
[1769409402711,0.727,2882.2,2880.7,7.21608077]
[1769409403114,0.55116996,2882.2,2880.7,7.21608077]
[1769409404739,0.55116996,2882.2,2880.9,7.21608077]
[1769409404914,0.55116996,2882.2,2881.0,8.0244703]
[1769409406406,0.002,2882.3,2881.0,8.0244703]
[1769409406810,0.002,2882.0,2881.2,7.21608077]
[1769409409629,0.002,2882.0,2881.0,0.80838953]
[1769409409830,0.002,2882.0,2881.0,1.67613939]
[1769409410127,0.002,2882.0,2881.1,0.8677233]
[1769409410498,0.002,2882.0,2881.2,8.01831657]
[1769409412733,0.002,2882.2,2881.3,7.21608077]
[1769409413233,0.002,2882.2,2881.5,7.21608077]
[1769409416238,0.002,2882.2,2881.6,8.08365434]
[1769409416549,0.002,2882.3,2881.6,8.08365434]
[1769409416712,7.18741914,2883.8,2881.6,8.08365434]
[1769409416713,7.25024196,2883.4,2882.1,7.21608077]
[1769409418446,7.25024196,2883.4,2882.2,0.86739296]
[1769409419519,7.25024196,2883.4,2882.2,8.08347373]
[1769409423246,7.25024196,2883.4,2882.2,7.21608077]
[1769409423639,6.84242403,2883.2,2881.7,1.06880556]
[1769409423839,6.84242403,2883.0,2881.7,1.93632875]
[1769409425251,6.84242403,2883.0,2881.7,9.224905]
[1769409425563,6.84242403,2883.0,2881.8,7.28857625]
[1769409426345,6.84242403,2883.0,2881.8,8.15607093]
[1769409426870,0.6905125,2883.1,2881.9,0.03469933]
[1769409427146,2.9e-06,2883.3,2882.0,7.28857625]
[1769409427351,2.9e-06,2883.3,2882.2,7.28857625]
[1769409427352,0.68444269,2883.2,2882.2,7.28857625]
[1769409428242,0.68444269,2883.2,2882.3,0.86736286]
[1769409428555,0.68444269,2883.2,2882.2,8.15594899]
[1769409429457,0.68444269,2883.2,2882.2,7.28857625]
[1769409429627,0.68444269,2883.2,2882.2,8.16687402]
[1769409430051,7.52686672,2883.2,2882.0,0.86745162]
[1769409430258,7.52686672,2883.2,2882.0,0.90214974]
[1769409430751,7.52686672,2883.2,2882.0,8.19072599]
[1769409430955,7.52686672,2883.2,2882.0,8.15702787]
[1769409431125,0.002,2883.0,2882.0,8.15702787]
[1769409431324,0.002,2883.0,2882.1,1.16269434]
[1769409431552,0.002,2883.0,2882.1,2.0300987]
[1769409431748,0.002,2883.0,2882.2,0.03469571]
[1769409432353,6.84442403,2883.0,2882.0,0.001]
[1769409432532,6.84442403,2883.0,2881.4,0.001]
[1769409432732,6.84242403,2882.8,2881.4,0.46586406]
[1769409432954,6.84242403,2882.8,2881.4,0.001]
[1769409435927,6.84242403,2882.7,2881.4,0.001]
[1769409436358,7.70967597,2882.7,2881.4,0.001]
[1769409437133,7.77237408,2882.7,2881.4,0.001]
[1769409437466,7.00342632,2882.2,2880.3,7.69414497]
[1769409437654,7.00342632,2882.0,2880.4,7.9428028]
[1769409438035,7.00342632,2882.0,2880.6,7.69404697]
[1769409438964,0.128,2882.3,2880.6,7.69404697]
[1769409439144,0.727,2881.9,2880.6,7.69404697]
[1769409439465,0.727,2881.9,2880.8,6.82619362]
[1769409440230,0.727,2881.9,2881.0,6.82619362]
[1769409441359,0.727,2881.9,2880.7,7.94274822]
[1769409441565,7.73042632,2881.9,2880.7,7.94274822]
[1769409442963,7.73042632,2881.9,2881.2,0.001]
[1769409443163,7.00342632,2881.7,2880.4,6.82619362]
[1769409443869,7.00342632,2881.7,2879.8,3.781]
[1769409443870,7.00342632,2881.7,2880.1,7.69419753]
[1769409444040,7.00342632,2881.7,2880.1,6.82619362]
[1769409444246,7.00342632,2881.7,2880.1,7.69419821]
[1769409444443,7.00342632,2881.5,2880.2,1.11664036]
[1769409445740,7.00342632,2881.5,2880.1,7.69421688]
[1769409445944,7.06612443,2881.5,2879.8,10.29965362]
[1769409446142,0.727,2881.5,2880.3,6.82619362]
[1769409446754,7.73042632,2882.1,2880.5,6.82619362]
[1769409447060,1.40804263,2882.0,2880.7,6.82619362]
[1769409447261,1.40804263,2882.0,2880.7,7.69402136]
[1769409447968,1.40804263,2882.0,2880.9,6.82619362]
[1769409448169,7.00342632,2881.6,2880.2,0.86797561]
[1769409448473,7.00342632,2881.4,2880.1,7.69419553]
[1769409448658,7.00342632,2881.4,2880.1,6.82619362]
[1769409449161,7.00342632,2881.4,2880.1,7.6942021]
[1769409449334,7.00342632,2881.4,2880.1,7.69421367]
[1769409449936,0.70661244,2881.5,2880.1,7.69421345]
[1769409450158,0.727,2881.6,2880.2,7.94283555]
[1769409451962,0.727,2881.6,2880.4,6.82619362]
[1769409453666,0.727,2881.6,2880.5,0.02636512]
[1769409453850,0.727,2881.6,2880.5,7.39465298]
[1769409454051,0.727,2881.6,2880.5,7.36828786]
[1769409454376,0.727,2881.6,2880.5,8.19190882]
[1769409454673,0.727,2881.6,2880.5,9.05980805]
[1769409454881,0.727,2881.6,2880.5,9.06080805]
[1769409455588,0.727,2881.6,2880.5,8.19290882]
[1769409456376,0.002,2881.7,2880.7,7.36828786]
[1769409456564,0.002,2881.7,2880.9,7.36828786]
[1769409456769,0.002,2881.7,2881.1,7.36828786]
[1769409457164,0.002,2881.7,2880.8,8.10745586]
[1769409457368,0.002,2881.7,2880.9,0.03471137]
[1769409457568,0.002,2881.7,2880.9,7.40299923]
[1769409457767,0.002,2881.7,2881.0,0.81421672]
[1769409459397,0.002,2881.7,2881.0,8.18250458]
[1769409459595,0.002,2881.7,2881.0,9.05023289]
[1769409459899,0.002,2881.7,2881.1,7.40299682]
[1769409460213,6.77649944,2882.8,2881.4,7.36828786]
[1769409460369,6.77649944,2882.8,2881.3,0.8676639]
[1769409460370,0.67764994,2882.7,2881.5,8.19188304]
[1769409460781,6.77449944,2882.7,2881.5,8.19188304]
[1769409462496,6.77449944,2882.7,2881.5,0.82359518]
[1769409462692,6.77449944,2882.7,2881.3,0.90236963]
[1769409462988,6.77449944,2882.7,2881.2,8.23596293]
[1769409463195,6.77449944,2882.7,2881.3,0.03470655]
[1769409463396,6.77449944,2882.7,2881.2,8.23596293]
[1769409463596,0.002,2882.8,2881.6,7.36828786]
[1769409463764,0.002,2882.8,2881.7,8.19187576]
[1769409464502,6.77649944,2882.8,2881.7,8.19187576]
[1769409464675,6.77649944,2882.8,2881.7,7.36828786]
[1769409465494,6.77649944,2882.8,2881.4,0.86762827]
[1769409466397,6.77649944,2882.8,2881.4,8.23591613]
[1769409467077,6.77649944,2882.8,2881.5,7.402992]
[1769409467278,6.77649944,2882.8,2881.5,7.36828786]
[1769409467597,0.67764994,2882.7,2881.6,8.19187947]
[1769409468592,0.002,2882.6,2881.6,8.19187947]
[1769409468897,6.77649944,2882.6,2881.6,0.82359161]
[1769409469089,6.77649944,2882.6,2881.3,8.23593816]
[1769409469697,6.77649944,2882.6,2881.3,7.36828786]
[1769409470296,0.002,2882.6,2881.5,8.23588943]
[1769409470503,0.002,2882.6,2881.6,8.19534734]
[1769409471183,0.002,2882.6,2881.6,9.0629073]
[1769409471701,0.002,2882.6,2881.6,8.19534734]
[1769409472675,0.002,2882.6,2881.6,9.0629171]
[1769409473690,0.002,2882.6,2881.6,8.19534734]
[1769409473887,0.002,2882.6,2881.6,9.06291425]
[1769409474106,0.002,2882.6,2881.8,7.36828786]
[1769409474301,0.002,2882.6,2881.9,7.40298719]
[1769409474502,0.002,2882.6,2881.9,7.36828786]
[1769409474891,0.002,2882.6,2881.9,8.23575913]
[1769409475224,0.002,2882.6,2882.0,8.19186377]
[1769409475396,0.002,2882.6,2881.8,0.86750662]
[1769409475722,0.002,2882.6,2881.8,8.27049501]
[1769409475916,0.002,2882.6,2881.8,8.23579448]
[1769409476079,0.002,2882.6,2881.9,8.2704678]
[1769409476276,0.002,2882.6,2882.0,0.82704678]
[1769409477319,0.002,2882.6,2882.0,0.8617449]
[1769409477722,0.002,2882.6,2882.0,0.82704678]
[1769409478787,0.002,2882.8,2882.2,7.36828786]
[1769409480815,0.002,2882.4,2882.2,7.36828786]
[1769409480999,0.002,2882.6,2882.3,0.82357006]
[1769409482605,0.002,2883.2,2882.4,7.40298117]
[1769409482805,0.002,2883.2,2882.4,7.36828786]
[1769409483391,0.002,2883.7,2882.6,6.83044586]
[1769409484711,7.04123827,2883.7,2882.6,6.83044586]
[1769409484903,7.04123827,2883.5,2882.3,7.69778941]
[1769409485103,7.04123827,2883.5,2882.4,0.03469331]
[1769409485304,7.04123827,2883.5,2882.3,7.69778941]
[1769409485305,0.70432383,2883.3,2882.3,7.69778941]
[1769409485691,0.70432383,2883.3,2882.4,0.86733254]
[1769409485905,0.70432383,2883.3,2882.1,3.46969087]
[1769409485906,7.7435621,2883.3,2882.1,0.86740088]
[1769409486116,7.7435621,2883.3,2882.1,0.9020978]
[1769409486330,7.7435621,2883.3,2882.1,0.86740088]
[1769409486533,7.81379448,2883.2,2882.1,0.86740088]
[1769409487399,7.81379448,2883.2,2882.0,7.69788438]
[1769409488135,7.81379448,2883.2,2882.1,0.86741973]
[1769409489209,0.77455621,2883.2,2882.2,6.86514157]
[1769409489419,7.04123827,2883.5,2882.2,6.83044586]
[1769409490223,7.04123827,2883.4,2882.2,7.69781797]
[1769409492929,7.04123827,2883.4,2882.4,0.001]
[1769409493534,0.002,2883.4,2882.4,0.001]
[1769409493743,0.002,2883.4,2882.5,6.83044586]
[1769409493900,0.002,2883.4,2882.4,0.03569331]
[1769409493901,0.002,2883.4,2882.7,6.83044586]
[1769409499539,0.002,2883.4,2882.9,7.41393616]
[1769409501529,0.002,2883.4,2882.9,8.28111695]
[1769409501734,0.002,2883.4,2882.9,7.41393616]
[1769409503171,0.002,2883.4,2882.9,8.28110802]
[1769409503449,0.002,2883.4,2883.0,8.27673305]
[1769409503656,0.002,2883.4,2883.0,8.24204696]
[1769409505063,0.002,2883.4,2883.1,0.001]
[1769409506632,0.002,2883.4,2883.1,0.03568488]
[1769409506949,0.002,2883.4,2883.1,0.001]
[1769409507151,0.002,2883.4,2883.1,0.74596223]
[1769409509450,0.002,2883.4,2883.1,8.15989839]
[1769409509763,0.002,2883.6,2883.2,7.44861984]
[1769409510059,0.002,2883.6,2883.2,7.41393616]
[1769409511241,0.002,2883.6,2883.3,0.03468248]
[1769409511560,0.002,2883.6,2883.4,0.74486186]
[1769409514462,0.002,2883.6,2883.1,0.74596223]
[1769409514649,0.002,2883.6,2883.1,0.001]
[1769409516632,0.002,2883.8,2883.2,7.0771772]
[1769409516832,0.002,2883.8,2883.2,7.04249352]
[1769409518540,0.002,2883.8,2883.3,7.077176]
[1769409518860,0.002,2883.8,2883.3,7.04249352]
[1769409519367,0.002,2883.8,2883.4,7.83345111]
[1769409520462,0.002,2883.8,2883.5,0.03468007]
[1769409520968,0.002,2883.8,2883.4,7.83345111]
[1769409523781,0.002,2883.8,2883.4,0.79095759]
[1769409525458,0.002,2883.8,2883.2,7.04249352]
[1769409525773,0.002,2883.8,2883.1,0.001]
[1769409525774,7.13824384,2883.8,2883.1,0.001]
[1769409526069,0.002,2883.8,2883.1,0.001]
[1769409526272,0.002,2883.8,2883.1,0.03568488]
[1769409527876,0.002,2883.8,2883.1,7.0781784]
[1769409528046,0.002,2883.8,2883.1,7.04349352]
[1769409528248,0.002,2883.8,2883.2,0.03468368]
[1769409528447,0.002,2883.8,2883.2,1.48593519]
[1769409528879,0.002,2883.8,2883.3,7.04349352]
[1769409529083,0.002,2883.6,2883.3,7.04349352]
[1769409529249,0.002,2883.8,2883.3,7.04349352]
[1769409530690,0.002,2883.8,2883.3,0.001]
[1769409530691,7.13824384,2883.8,2883.3,0.001]
[1769409530979,7.85246822,2883.8,2883.1,0.001]
[1769409531156,7.85246822,2883.8,2882.7,0.0346897]
[1769409531478,7.85246822,2883.8,2882.4,0.001]
[1769409531682,7.85246822,2883.8,2882.7,7.04249352]
[1769409531851,7.85246822,2883.8,2882.8,1.36097004]
[1769409532175,7.85246822,2883.8,2882.6,6.56720692]
[1769409532376,7.13624384,2883.6,2882.4,0.86831373]
[1769409532580,0.726,2883.5,2882.5,7.07718562]
[1769409532884,7.86224384,2883.5,2882.5,7.04249352]
[1769409533875,7.86224384,2883.5,2882.5,7.90979586]
[1769409534077,7.86224384,2883.5,2882.6,1.44780028]
[1769409535195,7.86224384,2883.5,2882.6,1.48249118]
[1769409535696,7.86224384,2883.5,2882.6,1.44780028]
[1769409537996,0.726,2883.5,2882.7,7.07718322]
[1769409538228,0.726,2883.5,2882.7,13.60970044]
[1769409538365,0.726,2883.5,2882.8,8.27412413]
[1769409538565,0.726,2883.5,2882.9,0.03468729]
[1769409540504,0.002,2883.8,2883.1,7.04249352]
[1769409541228,0.002,2883.6,2883.1,7.04249352]
[1769409546819,6.83017396,2883.6,2882.9,0.001]
[1769409547040,7.51339136,2883.6,2882.9,0.001]
[1769409547381,0.002,2883.6,2882.9,0.90286733]
[1769409547703,0.002,2883.6,2882.9,0.90286423]
[1769409548512,0.002,2883.6,2882.9,7.55624945]
[1769409548711,0.002,2883.6,2882.9,7.52156216]
[1769409550505,0.002,2883.6,2882.9,6.65438522]
[1769409550704,0.002,2883.6,2883.0,0.87532074]
[1769409551529,6.83017396,2883.6,2883.0,0.87532074]
[1769409551824,6.83017396,2883.6,2882.9,0.001]
[1769409553196,6.83017396,2883.6,2882.9,0.03568729]
[1769409553427,6.83017396,2883.6,2883.1,0.001]
[1769409553655,0.002,2883.4,2883.1,0.001]
[1769409556947,6.83017396,2883.4,2883.1,0.001]
[1769409557153,6.83017396,2883.4,2882.9,0.001]
[1769409557154,7.01934874,2883.2,2882.9,0.001]
[1769409557556,7.01934874,2883.2,2882.4,0.8683122]
[1769409557557,7.01934874,2883.0,2882.4,0.001]
[1769409565264,7.01934874,2883.0,2882.6,0.001]
[1769409565862,7.01934874,2883.0,2882.4,0.001]
[1769409568768,7.01934874,2883.0,2881.7,13.31483909]
[1769409569344,6.56835803,2883.0,2881.7,6.74648106]
[1769409569667,7.83549848,2882.9,2881.7,6.74648106]
[1769409570040,7.83549848,2882.9,2881.5,6.74648106]
[1769409570746,8.70269898,2882.9,2881.5,6.74648106]
[1769409570963,7.83549848,2882.9,2881.5,7.61408361]
[1769409571168,7.83549848,2882.9,2881.5,6.74648106]
[1769409571363,7.01934874,2882.7,2881.5,6.74648106]
[1769409571568,7.01934874,2882.7,2881.5,7.61408237]
[1769409571765,7.01934874,2882.7,2881.5,6.74648106]
[1769409572389,7.01934874,2882.7,2881.6,6.781184]
[1769409572667,7.01934874,2882.7,2881.6,6.74648106]
[1769409572872,7.01934874,2882.5,2881.6,6.74648106]
[1769409573045,0.727,2882.4,2881.6,6.74648106]
[1769409573245,0.727,2882.4,2881.7,0.03470173]
[1769409576692,1.59607065,2882.8,2881.7,0.03470173]
[1769409576693,1.53337254,2882.8,2881.8,6.57674869]
[1769409576854,1.53337254,2882.8,2882.1,6.57674869]
[1769409576855,0.727,2882.7,2882.1,6.57674869]
[1769409577055,1.51533725,2882.7,2882.1,6.57674869]
[1769409577853,0.727,2882.7,2882.1,6.57674869]
[1769409582992,6.92241609,2883.4,2882.5,6.57674869]
[1769409586405,6.92241609,2883.4,2882.2,6.57674869]
[1769409588494,6.92241609,2883.2,2882.2,6.57674869]
[1769409596560,6.92241609,2883.2,2882.0,6.56835803]
[1769409596727,6.92041609,2883.0,2881.9,6.57774869]
[1769409597246,6.92041609,2883.0,2881.9,7.44523108]
[1769409597652,6.92041609,2883.0,2881.9,6.57774869]
[1769409600247,6.92041609,2882.7,2882.1,0.001]
[1769409600427,6.92041609,2882.5,2882.1,0.001]
[1769409600632,0.76474161,2882.4,2882.1,0.001]
[1769409600858,0.727,2882.9,2882.1,6.57774869]
[1769409601522,0.727,2882.9,2882.1,7.44517156]
[1769409605645,0.727,2882.9,2882.3,6.66070089]
[1769409606235,0.002,2883.0,2882.3,6.66070089]
[1769409606431,0.002,2883.0,2882.6,6.66070089]
[1769409606635,0.002,2883.2,2882.7,7.98396739]
[1769409608346,0.002,2883.2,2882.5,6.66070089]
[1769409609865,0.002,2883.2,2882.3,6.66070089]
[1769409610762,7.01063127,2883.2,2882.3,6.66070089]
[1769409611832,0.002,2883.2,2882.8,6.66070089]
[1769409612055,0.002,2883.4,2882.7,6.57196409]
[1769409612249,0.729,2883.6,2883.1,6.66070089]
[1769409613053,0.729,2883.6,2883.2,6.66070089]
[1769409617337,0.729,2883.6,2883.1,6.50266364]
[1769409620371,0.729,2883.6,2883.1,13.19471176]
[1769409620558,0.729,2883.6,2883.2,6.69204812]
[1769409620756,0.002,2883.8,2883.4,6.50266364]
[1769409621071,0.002,2884.0,2883.5,6.69204812]
[1769409623768,0.002,2884.2,2883.7,6.50266364]
[1769409624440,0.002,2884.2,2883.4,13.19471176]
[1769409625261,6.77102315,2884.2,2883.4,13.19471176]
[1769409625462,0.67710232,2884.1,2883.4,6.69204812]
[1769409627147,0.002,2884.2,2883.5,6.69204812]
[1769409630272,0.002,2884.4,2883.8,6.69204812]
[1769409630649,0.002,2884.4,2883.5,7.55904163]
[1769409630859,6.77102315,2884.4,2883.5,7.55904163]
[1769409631059,6.77102315,2884.4,2883.6,0.61605034]
[1769409632867,6.77102315,2884.4,2883.3,6.69204812]
[1769409633580,0.002,2884.4,2883.5,6.76259537]
[1769409634073,0.002,2884.4,2883.5,7.62959139]
[1769409634474,0.002,2884.4,2883.5,6.76259537]
[1769409634849,0.002,2884.4,2883.5,7.6295923]
[1769409635060,0.002,2884.4,2883.7,6.76259537]
[1769409635547,0.002,2884.4,2883.7,6.76359537]
[1769409635746,6.77749476,2884.4,2883.7,0.001]
[1769409635945,0.002,2884.2,2883.7,0.001]
[1769409636681,0.002,2884.4,2883.8,6.76259537]
[1769409639956,0.002,2884.6,2884.1,6.76259537]
[1769409641286,0.002,2884.6,2884.2,6.79726702]
[1769409641580,0.002,2884.6,2884.2,6.76259537]
[1769409641756,0.002,2884.6,2884.3,0.60249993]
[1769409642089,0.002,2884.6,2884.1,6.79726823]
[1769409642252,0.002,2884.6,2884.1,6.76259537]
[1769409642565,0.002,2884.6,2884.2,6.79726702]
[1769409642762,0.002,2885.2,2884.4,6.76259537]
[1769409643084,0.002,2885.2,2884.6,13.26525901]
[1769409643266,0.002,2885.2,2884.7,6.76259537]
[1769409644787,6.77749476,2885.2,2884.1,6.76259537]
[1769409645163,6.77749476,2885.2,2884.1,7.62941192]
[1769409645364,0.67774948,2885.1,2884.1,9.38937181]
[1769409645560,0.06269811,2884.9,2883.9,6.76259537]
[1769409645760,6.83819287,2885.0,2883.9,6.76259537]
[1769409646687,6.83819287,2885.0,2883.9,13.26525901]
[1769409647769,6.83819287,2885.0,2883.9,14.13313764]
[1769409647969,6.84019287,2885.0,2883.9,14.13313764]
[1769409648293,7.45951405,2884.9,2883.9,15.02644849]
[1769409649194,0.002,2885.0,2884.2,6.50266364]
[1769409649375,0.002,2885.0,2884.3,6.76259537]
[1769409651888,0.002,2885.0,2884.2,6.50266364]
[1769409652498,0.002,2885.0,2884.2,13.26525901]
[1769409652698,0.002,2885.0,2884.2,14.67846851]
[1769409653829,0.002,2885.0,2884.5,13.26525901]
[1769409654030,0.002,2885.0,2884.5,6.50266364]
[1769409654193,0.002,2885.0,2884.3,6.76259537]
[1769409655687,0.002,2885.0,2884.2,7.91587314]
[1769409655893,0.002,2885.0,2884.3,1.26622139]
[1769409656930,0.002,2885.0,2884.3,8.02881676]
[1769409659640,0.002,2885.0,2884.3,1.26622139]
[1769409659812,0.002,2885.0,2883.9,0.001]
[1769409659813,6.77549476,2884.9,2883.9,0.001]
[1769409660008,6.77549476,2884.9,2884.0,6.76259537]
[1769409660438,6.77549476,2884.9,2883.9,0.001]
[1769409660625,6.77549476,2884.9,2884.0,0.73705732]
[1769409660934,6.77549476,2884.7,2883.9,0.001]
[1769409661128,7.50149476,2884.7,2883.9,0.001]
[1769409661561,6.77549476,2884.5,2883.9,0.001]
[1769409661918,0.726,2884.5,2883.9,0.001]
[1769409663268,0.06469811,2885.0,2883.9,0.001]
[1769409663269,6.98035186,2885.0,2884.0,6.95942147]
[1769409663416,6.98035186,2885.0,2884.2,6.95942147]
[1769409663417,0.002,2885.0,2884.2,6.95942147]
[1769409663816,0.002,2885.0,2884.1,7.19870579]
[1769409664626,0.002,2885.0,2884.1,14.15812726]
[1769409666051,0.002,2885.0,2884.4,13.46208511]
[1769409667649,0.002,2885.0,2884.4,13.45619323]
[1769409667853,0.002,2885.0,2884.5,1.4322953]
[1769409669344,0.002,2885.0,2884.5,8.39171677]
[1769409671358,0.002,2884.8,2884.5,8.39171677]
[1769409671728,0.002,2884.8,2884.5,1.4322953]
[1769409672129,0.002,2885.0,2884.5,6.95942147]
[1769409674555,0.002,2885.2,2884.6,6.99408832]
[1769409674762,0.002,2885.2,2884.7,6.49677176]
[1769409674968,0.002,2885.2,2884.7,13.45619323]
[1769409675526,0.002,2885.2,2884.8,6.95942147]
[1769409675754,0.002,2885.2,2884.9,8.30504079]
[1769409679180,0.002,2885.2,2884.9,1.34561932]
[1769409679356,0.002,2885.2,2884.4,13.75695832]
[1769409679675,0.002,2885.2,2884.5,6.42813037]
[1769409679858,0.002,2885.2,2884.5,7.29482989]
[1769409680067,0.002,2885.2,2884.5,7.26016184]
[1769409680456,0.002,2885.2,2884.6,7.2947871]
[1769409680745,0.002,2885.2,2884.8,6.39346232]
[1769409680963,0.002,2885.2,2884.8,6.42812676]
[1769409681365,0.002,2885.6,2885.1,6.49677176]
[1769409681563,0.002,2886.2,2885.1,6.49677176]
[1769409681564,6.52548951,2886.2,2885.2,6.39346232]
[1769409682069,6.52548951,2886.2,2884.9,6.39346232]
[1769409682269,6.52348951,2886.0,2885.0,0.72600465]
[1769409682476,7.17603846,2886.1,2885.1,6.39346232]
[1769409682850,0.002,2886.2,2885.1,6.42812316]
[1769409683049,6.52548951,2886.2,2885.1,6.42812316]
[1769409683245,6.52548951,2886.2,2885.2,6.39346232]
[1769409683454,6.52548951,2886.2,2885.1,6.5314326]
[1769409683455,6.52548951,2886.2,2885.4,6.49677176]
[1769409684795,0.002,2886.2,2885.4,12.89023408]
[1769409684975,0.002,2886.2,2885.4,13.41813946]
[1769409685356,0.728,2886.2,2885.4,13.41813946]
[1769409685560,7.25148951,2886.2,2885.2,6.39346232]
[1769409685761,7.25148951,2886.2,2885.2,7.29461075]
[1769409685962,7.25148951,2886.2,2885.2,7.25995111]
[1769409686162,7.25148951,2886.2,2885.2,6.39346232]
[1769409686362,7.25148951,2886.2,2885.2,6.42812196]
[1769409686562,7.25148951,2886.2,2885.3,7.61740985]
[1769409687566,7.25148951,2886.2,2885.4,6.42811955]
[1769409688089,0.728,2886.2,2885.4,6.42811955]
[1769409688553,0.728,2886.2,2885.4,6.39346232]
[1769409688754,0.002,2886.2,2885.4,6.39346232]
[1769409688983,6.52548951,2886.2,2885.4,0.72947871]
[1769409689174,6.52348951,2885.9,2884.2,6.39346232]
[1769409689386,6.52348951,2885.9,2883.9,0.001]
[1769409689387,6.52348951,2885.9,2884.7,6.39346232]
[1769409689671,6.52348951,2885.9,2884.6,0.03466685]
[1769409689886,0.002,2886.2,2884.8,12.89023408]
[1769409689887,7.24948951,2885.8,2884.8,12.89023408]
[1769409690072,0.72494895,2885.7,2884.8,12.89023408]
[1769409690783,7.24843846,2885.7,2884.8,12.89023408]
[1769409690980,7.24843846,2885.7,2884.8,6.49677176]
[1769409691591,7.24843846,2885.7,2884.6,6.39346232]
[1769409691797,7.24843846,2885.7,2884.6,6.42812917]
[1769409691978,7.24843846,2885.7,2884.7,1.29249009]
[1769409692178,7.24843846,2885.7,2884.8,0.03466444]
[1769409692490,0.72494895,2885.7,2884.9,6.42812556]
[1769409692992,6.52348951,2885.9,2884.9,6.39346232]
[1769409693192,0.726,2885.9,2885.1,6.49677176]
[1769409693364,0.726,2885.9,2885.1,12.89834262]
[1769409696563,6.80624615,2886.2,2885.1,6.49677176]
[1769409696791,7.48487076,2886.1,2885.1,14.18827688]
[1769409697299,7.48487076,2886.1,2885.0,0.001]
[1769409699304,0.68062461,2886.1,2885.2,12.89834262]
[1769409699486,1.40662461,2886.1,2885.2,12.89834262]
[1769409699807,8.21087076,2886.1,2885.2,12.89834262]
[1769409700406,8.21087076,2886.1,2885.0,0.001]
[1769409700586,7.62553323,2886.0,2885.0,1.29093426]
[1769409700972,7.62553323,2886.0,2885.0,0.001]
[1769409701192,7.68823134,2886.0,2885.0,0.001]
[1769409702013,7.62553323,2886.0,2885.0,0.001]
[1769409702167,8.35153323,2886.0,2885.1,6.49677176]
[1769409702364,8.35153323,2886.0,2885.1,7.79017235]
[1769409702561,7.62553323,2886.0,2885.1,14.19174321]
[1769409702796,0.002,2886.2,2885.2,6.4362305]
[1769409703306,0.002,2886.2,2885.2,7.3027083]
[1769409703469,0.002,2886.2,2885.2,7.26804866]
[1769409703946,0.002,2886.2,2885.3,6.4362293]
[1769409704248,0.002,2886.2,2885.4,0.73027071]
[1769409704610,0.002,2886.2,2885.5,6.40157086]
[1769409704939,0.002,2886.2,2885.4,0.73027071]
[1769409706246,0.002,2886.2,2885.5,6.43622689]
[1769409706755,0.002,2886.2,2885.5,6.40157086]
[1769409707041,0.002,2886.2,2885.6,0.65575959]
[1769409707216,0.002,2886.0,2885.6,0.65575959]
[1769409707414,0.002,2886.2,2885.7,6.40157086]
[1769409708007,0.002,2886.2,2885.6,0.65575959]
[1769409711450,0.002,2886.2,2885.6,7.05733045]
[1769409711627,0.002,2886.2,2885.7,7.10730391]
[1769409711943,0.0197278,2886.6,2886.1,6.40157086]
[1769409713444,0.726,2887.0,2886.1,6.40157086]
[1769409713612,7.53024615,2887.0,2886.0,6.49677176]
[1769409713808,7.53024615,2887.0,2886.1,0.58766754]
[1769409714015,7.53024615,2887.0,2885.9,6.43622209]
[1769409714214,7.53024615,2887.0,2885.9,7.30249196]
[1769409714549,7.53024615,2887.0,2885.9,7.26784073]
[1769409714719,7.53024615,2887.0,2886.0,6.43622089]
[1769409715116,6.80424615,2887.2,2886.1,6.40157086]
[1769409715449,0.726,2886.9,2886.2,1.29329926]
[1769409715948,7.53024615,2886.9,2886.2,1.29329926]
[1769409716159,7.53024615,2886.9,2885.8,6.40157086]
[1769409716349,7.53024615,2886.9,2885.8,6.43622329]
[1769409717456,7.53024615,2886.9,2885.8,6.40157086]
[1769409718928,6.80424615,2886.7,2885.5,6.40157086]
[1769409719129,6.80424615,2886.7,2885.8,0.001]
[1769409719529,0.81772273,2886.8,2885.8,0.001]
[1769409719530,7.55927077,2886.8,2885.8,0.001]
[1769409719733,7.53024615,2886.6,2885.8,0.03565243]
[1769409720274,7.53024615,2886.6,2885.8,0.001]
[1769409720429,8.35877323,2886.6,2885.8,0.001]
[1769409723770,1.55452708,2886.6,2885.8,0.001]
[1769409724073,0.726,2886.6,2885.8,0.001]
[1769409724932,6.98070226,2886.4,2885.8,0.001]
[1769409725139,0.726,2886.4,2885.8,0.001]
[1769409725533,7.70670226,2886.4,2885.8,0.001]
[1769409727769,6.98070226,2886.4,2885.8,0.001]
[1769409727968,1.42407023,2886.3,2885.8,0.001]
[1769409728268,0.726,2886.3,2885.8,0.001]
[1769409730492,7.70670226,2886.3,2885.8,0.001]
[1769409730677,7.70670226,2886.3,2885.3,0.001]
[1769409731704,7.70670226,2886.3,2886.0,0.001]
[1769409731899,7.70670226,2886.3,2885.3,0.001]
[1769409732060,7.75137249,2886.2,2885.3,0.001]
[1769409733581,7.75137249,2886.2,2885.3,6.74750779]
[1769409733790,0.77067023,2886.2,2885.3,6.74750779]
[1769409737426,0.726,2886.1,2885.3,6.74750779]
[1769409740406,0.726,2886.4,2885.5,6.38005356]
[1769409742018,0.726,2886.4,2885.5,6.41470959]
[1769409742785,0.726,2886.4,2885.5,6.38005356]
[1769409743319,0.726,2886.4,2885.7,0.001]
[1769409743518,0.002,2886.8,2885.8,6.38005356]
[1769409743822,0.728,2886.8,2885.8,6.38005356]
[1769409744911,0.728,2886.8,2885.8,7.2810152]
[1769409745089,0.728,2886.8,2885.8,7.24636277]
[1769409745930,0.002,2886.8,2886.1,6.38005356]
[1769409746091,0.002,2886.8,2886.3,6.38005356]
[1769409746293,0.002,2887.0,2886.3,6.38005356]
[1769409746498,0.002,2887.0,2886.5,6.38005356]
[1769409746893,0.002,2887.0,2886.3,6.38005356]
[1769409749903,0.002,2887.0,2886.5,6.38005356]